[Event "Titled Tuesday Blitz October 31 Late 2023"]
[White "Mekhitarian, Krikor Sevag"]
[Black "Hoang, Thi Bao Tram"]
[WhiteFideId "2107660"]
[BlackFideId "12401102"]
[WhiteElo "2736"]
[BlackElo "2564"]
[Result "0-1"]
[Round "11"]
[TimeControl "180+1"]
[Date "2023.10.31"]
[WhiteClock "0:00:02"]
[BlackClock "0:00:11"]
[Board "38"]

1. Nf3 {[%clk 0:02:59]}  d5 {[%clk 0:02:59]} 2. c4 {[%clk 0:02:59]}  c6 {[%clk 0:02:59]} 3. d4 {[%clk 0:02:58]}  Nf6 {[%clk 0:03:00]} 4. Nc3 {[%clk 0:02:54]}  g6 {[%clk 0:02:58]} 5. Bf4 {[%clk 0:02:53]}  Bg7 {[%clk 0:02:58]} 6. e3 {[%clk 0:02:53]}  O-O {[%clk 0:02:57]} 7. h3 {[%clk 0:02:54]}  b6 {[%clk 0:02:54]} 8. Bd3 {[%clk 0:02:50]}  Bb7 {[%clk 0:02:54]} 9. O-O {[%clk 0:02:47]}  Nbd7 {[%clk 0:02:55]} 10. b4 {[%clk 0:02:47]}  e6 {[%clk 0:02:51]} 11. a4 {[%clk 0:02:46]}  c5 {[%clk 0:02:50]} 12. Bd6 {[%clk 0:02:03]}  Re8 {[%clk 0:02:39]} 13. bxc5 {[%clk 0:02:02]}  bxc5 {[%clk 0:02:39]} 14. dxc5 {[%clk 0:01:54]}  Rc8 {[%clk 0:02:07]} 15. Rb1 {[%clk 0:01:44]}  Ba8 {[%clk 0:02:07]} 16. cxd5 {[%clk 0:01:40]}  exd5 {[%clk 0:02:05]} 17. Ba6 {[%clk 0:01:31]}  Nxc5 {[%clk 0:01:54]} 18. Bxc8 {[%clk 0:01:23]}  Qxd6 {[%clk 0:01:54]} 19. Nb5 {[%clk 0:01:19]}  Qe7 {[%clk 0:01:49]} 20. Bg4 {[%clk 0:01:03]}  h5 {[%clk 0:01:48]} 21. Bf5 {[%clk 0:01:04]}  gxf5 {[%clk 0:01:48]} 22. Nfd4 {[%clk 0:01:02]}  Nfe4 {[%clk 0:01:22]} 23. Nxf5 {[%clk 0:00:43]}  Qg5 {[%clk 0:01:16]} 24. Nxg7 {[%clk 0:00:43]}  Qxg7 {[%clk 0:01:14]} 25. Nc7 {[%clk 0:00:39]}  Rc8 {[%clk 0:01:14]} 26. Nxd5 {[%clk 0:00:35]}  Nc3 {[%clk 0:00:47]} 27. Qxh5 {[%clk 0:00:16]}  Bxd5 {[%clk 0:00:45]} 28. f3 {[%clk 0:00:12]}  Nxb1 {[%clk 0:00:40]} 29. Qxd5 {[%clk 0:00:12]}  Nc3 {[%clk 0:00:40]} 30. Qf5 {[%clk 0:00:11]}  Ne6 {[%clk 0:00:40]} 31. Kh2 {[%clk 0:00:09]}  Rc5 {[%clk 0:00:39]} 32. Qd3 {[%clk 0:00:08]}  Rd5 {[%clk 0:00:38]} 33. Qc4 {[%clk 0:00:08]}  Rd2 {[%clk 0:00:37]} 34. Rg1 {[%clk 0:00:08]}  Qe5+ {[%clk 0:00:37]} 35. Kh1 {[%clk 0:00:07]}  Ne2 {[%clk 0:00:33]} 36. Rb1 {[%clk 0:00:04]}  Ng3+ {[%clk 0:00:24]} 37. Kg1 {[%clk 0:00:04]}  Qxe3+ {[%clk 0:00:24]} 38. Kh2 {[%clk 0:00:04]}  Nh5 {[%clk 0:00:14]} 39. Qg4+ {[%clk 0:00:03]}  Neg7 {[%clk 0:00:14]} 40. Rb8+ {[%clk 0:00:03]}  Kh7 {[%clk 0:00:14]} 41. Rb5 {[%clk 0:00:03]}  Qf4+ {[%clk 0:00:14]} 42. Kg1 {[%clk 0:00:02]}  Qxg4 {[%clk 0:00:14]} 43. hxg4 {[%clk 0:00:03]}  Nf4 {[%clk 0:00:14]} 44. Rb7 {[%clk 0:00:03]}  Kg6 {[%clk 0:00:14]} 45. g3 {[%clk 0:00:02]}  Nh3+ {[%clk 0:00:13]} 46. Kf1 {[%clk 0:00:03]}  Ng5 {[%clk 0:00:12]} 47. f4 {[%clk 0:00:03]}  Ne4 {[%clk 0:00:13]} 48. Rxa7 {[%clk 0:00:01]}  Nxg3+ {[%clk 0:00:13]} 49. Ke1 {[%clk 0:00:02]}  Ra2 {[%clk 0:00:12]} 50. f5+ {[%clk 0:00:02]}  Kf6 {[%clk 0:00:12]} 51. g5+ {[%clk 0:00:03]}  Kxg5 {[%clk 0:00:12]} 52. Rxf7 {[%clk 0:00:03]}  N7xf5 {[%clk 0:00:13]} 53. Kd1 {[%clk 0:00:03]}  Kf4 {[%clk 0:00:12]} 54. Kc1 {[%clk 0:00:03]}  Ne4 {[%clk 0:00:12]} 55. Kb1 {[%clk 0:00:04]}  Rxa4 {[%clk 0:00:12]} 56. Rc7 {[%clk 0:00:04]}  Ke3 {[%clk 0:00:12]} 57. Kb2 {[%clk 0:00:03]}  Nd4 {[%clk 0:00:12]} 58. Rh7 {[%clk 0:00:03]}  Nd2 {[%clk 0:00:12]} 59. Rh3+ {[%clk 0:00:02]}  N2f3 {[%clk 0:00:12]} 60. Rh8 {[%clk 0:00:03]}  Kd3 {[%clk 0:00:12]} 61. Rb8 {[%clk 0:00:02]}  Nd2 {[%clk 0:00:12]} 62. Rh8 {[%clk 0:00:02]}  Nc4+ {[%clk 0:00:12]} 63. Kb1 {[%clk 0:00:03]}  Ne2 {[%clk 0:00:12]} 64. Rd8+ {[%clk 0:00:02]}  Kc3 {[%clk 0:00:12]} 65. Rb8 {[%clk 0:00:02]}  Nd2# {[%clk 0:00:11]} 0-1


[Site "https://www.chess.com"]

[Event "Titled Tuesday Blitz October 31 Late 2023"]
[White "Ardelean, George-Catalin"]
[Black "Bazilius, Augustinas"]
[WhiteFideId "1207091"]
[BlackFideId "12832251"]
[WhiteElo "2724"]
[BlackElo "2525"]
[Result "0-1"]
[Round "11"]
[TimeControl "180+1"]
[Date "2023.10.31"]
[WhiteClock "0:00:15"]
[BlackClock "0:00:19"]
[Board "39"]

1. d4 {[%clk 0:03:00]}  Nf6 {[%clk 0:02:10]} 2. Bf4 {[%clk 0:03:00]}  d6 {[%clk 0:02:05]} 3. Nc3 {[%clk 0:02:58]}  g6 {[%clk 0:02:06]} 4. e4 {[%clk 0:02:58]}  Bg7 {[%clk 0:02:05]} 5. Qd2 {[%clk 0:02:58]}  c6 {[%clk 0:02:05]} 6. f3 {[%clk 0:02:52]}  b5 {[%clk 0:02:04]} 7. g4 {[%clk 0:02:49]}  h5 {[%clk 0:02:01]} 8. g5 {[%clk 0:02:49]}  Nh7 {[%clk 0:02:01]} 9. h4 {[%clk 0:02:48]}  Nd7 {[%clk 0:01:56]} 10. Nh3 {[%clk 0:02:41]}  O-O {[%clk 0:01:56]} 11. a4 {[%clk 0:02:38]}  b4 {[%clk 0:01:55]} 12. Nd1 {[%clk 0:02:33]}  a5 {[%clk 0:01:55]} 13. Be3 {[%clk 0:02:24]}  c5 {[%clk 0:01:49]} 14. c3 {[%clk 0:02:22]}  Ba6 {[%clk 0:01:38]} 15. Nf4 {[%clk 0:02:18]}  Bxf1 {[%clk 0:01:36]} 16. Kxf1 {[%clk 0:02:17]}  e5 {[%clk 0:01:25]} 17. Nd5 {[%clk 0:02:12]}  bxc3 {[%clk 0:01:17]} 18. bxc3 {[%clk 0:02:11]}  exd4 {[%clk 0:01:18]} 19. cxd4 {[%clk 0:02:11]}  Nb6 {[%clk 0:01:18]} 20. Nb2 {[%clk 0:01:56]}  Nxd5 {[%clk 0:01:18]} 21. exd5 {[%clk 0:01:57]}  Qd7 {[%clk 0:01:19]} 22. Kg2 {[%clk 0:01:48]}  Qb7 {[%clk 0:01:10]} 23. Rhd1 {[%clk 0:01:36]}  Qxd5 {[%clk 0:00:59]} 24. dxc5 {[%clk 0:01:35]}  Qe6 {[%clk 0:00:57]} 25. Rab1 {[%clk 0:01:26]}  dxc5 {[%clk 0:00:43]} 26. Bxc5 {[%clk 0:01:23]}  Rfb8 {[%clk 0:00:44]} 27. Nd3 {[%clk 0:01:17]}  Rxb1 {[%clk 0:00:44]} 28. Rxb1 {[%clk 0:01:16]}  Rd8 {[%clk 0:00:45]} 29. Qc2 {[%clk 0:01:09]}  Qf5 {[%clk 0:00:39]} 30. Rd1 {[%clk 0:01:04]}  Nf8 {[%clk 0:00:39]} 31. Bxf8 {[%clk 0:00:56]}  Bxf8 {[%clk 0:00:40]} 32. Qe2 {[%clk 0:00:49]}  Rd4 {[%clk 0:00:35]} 33. f4 {[%clk 0:00:35]}  Rxa4 {[%clk 0:00:35]} 34. Rf1 {[%clk 0:00:26]}  Ra3 {[%clk 0:00:21]} 35. Rf3 {[%clk 0:00:24]}  Qd5 {[%clk 0:00:19]} 36. Kh2 {[%clk 0:00:21]}  Ra2 {[%clk 0:00:18]} 37. Nb2 {[%clk 0:00:21]}  Rxb2 {[%clk 0:00:18]} 38. Qxb2 {[%clk 0:00:15]}  Qxf3 {[%clk 0:00:19]} 0-1


[Site "https://www.chess.com"]

[Event "Titled Tuesday Blitz October 31 Late 2023"]
[White "Kubicka, Anna"]
[Black "Martinez Reyes, Pedro Ramon"]
[WhiteFideId "1152254"]
[BlackFideId "3901807"]
[WhiteElo "2486"]
[BlackElo "2622"]
[Result "0-1"]
[Round "11"]
[TimeControl "180+1"]
[Date "2023.10.31"]
[WhiteClock "0:00:17"]
[BlackClock "0:01:24"]
[Board "41"]

1. e4 {[%clk 0:03:00]}  b6 {[%clk 0:03:00]} 2. d4 {[%clk 0:03:00]}  Bb7 {[%clk 0:03:01]} 3. Bd3 {[%clk 0:02:59]}  e6 {[%clk 0:03:02]} 4. Nc3 {[%clk 0:02:56]}  Nf6 {[%clk 0:03:00]} 5. a3 {[%clk 0:02:54]}  d5 {[%clk 0:02:58]} 6. e5 {[%clk 0:02:54]}  Ne4 {[%clk 0:02:58]} 7. Nce2 {[%clk 0:02:36]}  f6 {[%clk 0:02:42]} 8. f3 {[%clk 0:02:08]}  Ng5 {[%clk 0:02:41]} 9. Bxg5 {[%clk 0:02:08]}  fxg5 {[%clk 0:02:42]} 10. Nh3 {[%clk 0:02:00]}  Be7 {[%clk 0:02:42]} 11. Nf2 {[%clk 0:01:58]}  O-O {[%clk 0:02:40]} 12. c3 {[%clk 0:01:57]}  c5 {[%clk 0:02:41]} 13. Qc2 {[%clk 0:01:55]}  h6 {[%clk 0:02:39]} 14. O-O {[%clk 0:01:49]}  Ba6 {[%clk 0:02:39]} 15. Ng3 {[%clk 0:01:41]}  Bxd3 {[%clk 0:02:38]} 16. Qxd3 {[%clk 0:01:37]}  Nc6 {[%clk 0:02:39]} 17. Rad1 {[%clk 0:01:35]}  Qe8 {[%clk 0:02:39]} 18. Nh3 {[%clk 0:01:23]}  Rc8 {[%clk 0:02:36]} 19. Qe2 {[%clk 0:01:21]}  b5 {[%clk 0:02:35]} 20. f4 {[%clk 0:01:20]}  gxf4 {[%clk 0:02:33]} 21. Nxf4 {[%clk 0:01:15]}  Bg5 {[%clk 0:02:33]} 22. Qg4 {[%clk 0:01:10]}  Bxf4 {[%clk 0:02:31]} 23. Rxf4 {[%clk 0:01:11]}  Rxf4 {[%clk 0:02:31]} 24. Qxf4 {[%clk 0:01:12]}  cxd4 {[%clk 0:02:31]} 25. cxd4 {[%clk 0:01:11]}  Qf7 {[%clk 0:02:32]} 26. Qg4 {[%clk 0:01:04]}  Rf8 {[%clk 0:02:31]} 27. Rf1 {[%clk 0:01:04]}  Qe7 {[%clk 0:02:25]} 28. Rxf8+ {[%clk 0:01:01]}  Kxf8 {[%clk 0:02:26]} 29. Nh5 {[%clk 0:00:59]}  Qf7 {[%clk 0:02:20]} 30. Nf4 {[%clk 0:00:48]}  Nxd4 {[%clk 0:02:12]} 31. Ng6+ {[%clk 0:00:45]}  Kg8 {[%clk 0:02:09]} 32. h4 {[%clk 0:00:39]}  Nf5 {[%clk 0:01:53]} 33. h5 {[%clk 0:00:34]}  a5 {[%clk 0:01:53]} 34. Qe2 {[%clk 0:00:27]}  Qb7 {[%clk 0:01:41]} 35. Qc2 {[%clk 0:00:21]}  d4 {[%clk 0:01:38]} 36. Qc5 {[%clk 0:00:20]}  Qa8 {[%clk 0:01:28]} 37. Qe7 {[%clk 0:00:18]}  Nxe7 {[%clk 0:01:26]} 38. Nxe7+ {[%clk 0:00:17]}  Kf7 {[%clk 0:01:24]} 0-1


[Site "https://www.chess.com"]

[Event "Titled Tuesday Blitz October 31 Late 2023"]
[White "Rakitic2010"]
[Black "Skatchkov, Valery"]
[BlackFideId "24195812"]
[WhiteElo "2473"]
[BlackElo "2589"]
[Result "0-1"]
[Round "11"]
[TimeControl "180+1"]
[Date "2023.10.31"]
[WhiteClock "0:00:00"]
[BlackClock "0:01:12"]
[Board "44"]

1. e4 {[%clk 0:03:00]}  e5 {[%clk 0:02:57]} 2. Nf3 {[%clk 0:03:00]}  d5 {[%clk 0:02:57]} 3. exd5 {[%clk 0:02:45]}  e4 {[%clk 0:02:57]} 4. Qe2 {[%clk 0:02:31]}  Nf6 {[%clk 0:02:57]} 5. d3 {[%clk 0:02:23]}  Qxd5 {[%clk 0:02:58]} 6. Nc3 {[%clk 0:02:21]}  Bb4 {[%clk 0:02:58]} 7. Bd2 {[%clk 0:02:18]}  Bxc3 {[%clk 0:02:59]} 8. Bxc3 {[%clk 0:02:18]}  O-O {[%clk 0:03:00]} 9. dxe4 {[%clk 0:02:17]}  Nxe4 {[%clk 0:03:00]} 10. Rd1 {[%clk 0:02:16]}  Qe6 {[%clk 0:03:00]} 11. Nd4 {[%clk 0:02:14]}  Qg6 {[%clk 0:03:00]} 12. Rd3 {[%clk 0:02:01]}  Nxc3 {[%clk 0:02:54]} 13. Rxc3 {[%clk 0:02:00]}  Bd7 {[%clk 0:02:44]} 14. Rg3 {[%clk 0:01:32]}  Qf6 {[%clk 0:02:43]} 15. c3 {[%clk 0:01:29]}  Nc6 {[%clk 0:02:42]} 16. Nc2 {[%clk 0:01:18]}  Rad8 {[%clk 0:02:28]} 17. Re3 {[%clk 0:01:14]}  Bf5 {[%clk 0:02:27]} 18. g4 {[%clk 0:01:11]}  Bg6 {[%clk 0:02:21]} 19. Bg2 {[%clk 0:01:09]}  Qf4 {[%clk 0:02:07]} 20. O-O {[%clk 0:01:02]}  Bxc2 {[%clk 0:02:06]} 21. Qxc2 {[%clk 0:01:01]}  Qxg4 {[%clk 0:02:07]} 22. Rg3 {[%clk 0:01:00]}  Qf4 {[%clk 0:02:06]} 23. Re1 {[%clk 0:00:52]}  Rd2 {[%clk 0:02:05]} 24. Qe4 {[%clk 0:00:46]}  Qxf2+ {[%clk 0:02:05]} 25. Kh1 {[%clk 0:00:47]}  Rxb2 {[%clk 0:01:47]} 26. Rf1 {[%clk 0:00:34]}  Qe2 {[%clk 0:01:46]} 27. Re3 {[%clk 0:00:22]}  Qh5 {[%clk 0:01:42]} 28. Rg3 {[%clk 0:00:19]}  g6 {[%clk 0:01:41]} 29. Rgf3 {[%clk 0:00:19]}  Qe5 {[%clk 0:01:41]} 30. Qg4 {[%clk 0:00:18]}  f5 {[%clk 0:01:41]} 31. Qc4+ {[%clk 0:00:18]}  Kg7 {[%clk 0:01:41]} 32. Rd3 {[%clk 0:00:16]}  Rf7 {[%clk 0:01:38]} 33. Rh3 {[%clk 0:00:08]}  Rd7 {[%clk 0:01:35]} 34. Qh4 {[%clk 0:00:08]}  h5 {[%clk 0:01:34]} 35. Qg5 {[%clk 0:00:07]}  Rdd2 {[%clk 0:01:34]} 36. Rxh5 {[%clk 0:00:08]}  Rxg2 {[%clk 0:01:31]} 37. Qh6+ {[%clk 0:00:08]}  Kf7 {[%clk 0:01:31]} 38. Qh7+ {[%clk 0:00:07]}  Qg7 {[%clk 0:01:30]} 39. Rfxf5+ {[%clk 0:00:07]}  gxf5 {[%clk 0:01:31]} 40. Qxf5+ {[%clk 0:00:04]}  Qf6 {[%clk 0:01:16]} 41. Rh7+ {[%clk 0:00:03]}  Rg7 {[%clk 0:01:17]} 42. Qd7+ {[%clk 0:00:03]}  Kg6 {[%clk 0:01:15]} 43. Qd3+ {[%clk 0:00:02]}  Kf7 {[%clk 0:01:12]} 44. Qd7+ {[%clk 0:00:00]}  Ne7 {[%clk 0:01:12]} 0-1


[Site "https://www.chess.com"]

[Event "Titled Tuesday Blitz October 31 Late 2023"]
[White "balachess2006"]
[Black "Abduzhaparov"]
[WhiteElo "2579"]
[BlackElo "2464"]
[Result "1-0"]
[Round "11"]
[TimeControl "180+1"]
[Date "2023.10.31"]
[WhiteClock "0:01:25"]
[BlackClock "0:00:00"]
[Board "45"]

1. Nf3 {[%clk 0:03:00]}  d6 {[%clk 0:03:00]} 2. d4 {[%clk 0:03:00]}  Nf6 {[%clk 0:03:01]} 3. c4 {[%clk 0:03:00]}  Nbd7 {[%clk 0:03:02]} 4. Nc3 {[%clk 0:03:00]}  e5 {[%clk 0:03:02]} 5. g3 {[%clk 0:03:01]}  Be7 {[%clk 0:03:00]} 6. Bg2 {[%clk 0:03:01]}  O-O {[%clk 0:03:00]} 7. O-O {[%clk 0:03:02]}  Re8 {[%clk 0:03:01]} 8. Qc2 {[%clk 0:03:02]}  Bf8 {[%clk 0:03:01]} 9. e4 {[%clk 0:03:02]}  exd4 {[%clk 0:02:58]} 10. Nxd4 {[%clk 0:03:03]}  a5 {[%clk 0:02:58]} 11. h3 {[%clk 0:03:03]}  c6 {[%clk 0:02:57]} 12. Rd1 {[%clk 0:03:03]}  Nc5 {[%clk 0:02:57]} 13. Bf4 {[%clk 0:03:02]}  Qb6 {[%clk 0:02:47]} 14. Nb3 {[%clk 0:02:59]}  a4 {[%clk 0:02:36]} 15. Nxc5 {[%clk 0:02:58]}  Qxc5 {[%clk 0:02:37]} 16. Nxa4 {[%clk 0:02:57]}  Qh5 {[%clk 0:02:31]} 17. g4 {[%clk 0:02:54]}  Nxg4 {[%clk 0:02:24]} 18. hxg4 {[%clk 0:02:54]}  Bxg4 {[%clk 0:02:23]} 19. Re1 {[%clk 0:02:54]}  Bf3 {[%clk 0:02:17]} 20. Bg3 {[%clk 0:02:50]}  Bxg2 {[%clk 0:02:00]} 21. Kxg2 {[%clk 0:02:51]}  d5 {[%clk 0:02:00]} 22. cxd5 {[%clk 0:02:49]}  cxd5 {[%clk 0:01:59]} 23. Nc3 {[%clk 0:02:49]}  dxe4 {[%clk 0:01:55]} 24. Rxe4 {[%clk 0:02:48]}  Rec8 {[%clk 0:01:49]} 25. Rh1 {[%clk 0:02:46]}  Qg6 {[%clk 0:01:47]} 26. Qe2 {[%clk 0:02:46]}  b5 {[%clk 0:01:30]} 27. Nxb5 {[%clk 0:02:41]}  Rxa2 {[%clk 0:01:27]} 28. Nc3 {[%clk 0:02:33]}  Rxc3 {[%clk 0:01:25]} 29. Re8 {[%clk 0:02:19]}  Qc6+ {[%clk 0:00:58]} 30. Kh2 {[%clk 0:02:12]}  Rc5 {[%clk 0:00:44]} 31. Re1 {[%clk 0:02:00]}  g6 {[%clk 0:00:28]} 32. Qe7 {[%clk 0:01:40]}  Rh5+ {[%clk 0:00:23]} 33. Bh4 {[%clk 0:01:40]}  Rxh4+ {[%clk 0:00:16]} 34. Qxh4 {[%clk 0:01:37]}  Ra5 {[%clk 0:00:16]} 35. Qe7 {[%clk 0:01:28]}  Rh5+ {[%clk 0:00:15]} 36. Kg3 {[%clk 0:01:27]}  Rg5+ {[%clk 0:00:02]} 37. Qxg5 {[%clk 0:01:26]}  Qd6+ {[%clk 0:00:00]} 38. Qe5 {[%clk 0:01:25]} 1-0


[Site "https://www.chess.com"]

[Event "Titled Tuesday Blitz October 31 Late 2023"]
[White "Chan, Luis"]
[Black "Figorito, Nick"]
[WhiteFideId "3216357"]
[BlackFideId "30923689"]
[WhiteElo "2578"]
[BlackElo "2456"]
[Result "1-0"]
[Round "11"]
[TimeControl "180+1"]
[Date "2023.10.31"]
[WhiteClock "0:00:13"]
[BlackClock "0:00:06"]
[Board "46"]

1. b3 {[%clk 0:03:00]}  Nf6 {[%clk 0:02:59]} 2. Bb2 {[%clk 0:03:01]}  g6 {[%clk 0:03:00]} 3. Bxf6 {[%clk 0:03:01]}  exf6 {[%clk 0:02:59]} 4. c4 {[%clk 0:03:02]}  f5 {[%clk 0:02:58]} 5. Nc3 {[%clk 0:03:02]}  Bg7 {[%clk 0:02:58]} 6. g3 {[%clk 0:03:02]}  O-O {[%clk 0:02:59]} 7. Bg2 {[%clk 0:03:02]}  d6 {[%clk 0:02:58]} 8. e3 {[%clk 0:03:02]}  Nc6 {[%clk 0:02:58]} 9. Nge2 {[%clk 0:03:03]}  Ne5 {[%clk 0:02:54]} 10. d4 {[%clk 0:03:01]}  Ng4 {[%clk 0:02:54]} 11. O-O {[%clk 0:03:02]}  Nf6 {[%clk 0:02:55]} 12. b4 {[%clk 0:03:01]}  c6 {[%clk 0:02:45]} 13. b5 {[%clk 0:03:00]}  Bd7 {[%clk 0:02:45]} 14. Rb1 {[%clk 0:02:54]}  Qc7 {[%clk 0:02:37]} 15. bxc6 {[%clk 0:02:45]}  bxc6 {[%clk 0:02:29]} 16. Qa4 {[%clk 0:02:43]}  Rab8 {[%clk 0:02:24]} 17. Nf4 {[%clk 0:02:36]}  Rxb1 {[%clk 0:02:11]} 18. Rxb1 {[%clk 0:02:35]}  Rb8 {[%clk 0:02:11]} 19. Rxb8+ {[%clk 0:02:30]}  Qxb8 {[%clk 0:02:12]} 20. Bxc6 {[%clk 0:02:30]}  Be6 {[%clk 0:01:58]} 21. Nxe6 {[%clk 0:01:30]}  fxe6 {[%clk 0:01:59]} 22. Nb5 {[%clk 0:01:30]}  Qb6 {[%clk 0:01:21]} 23. Nxd6 {[%clk 0:01:19]}  Qb1+ {[%clk 0:01:02]} 24. Kg2 {[%clk 0:01:19]}  h5 {[%clk 0:00:58]} 25. Bf3 {[%clk 0:01:09]}  Qb6 {[%clk 0:00:33]} 26. c5 {[%clk 0:01:07]}  Qb8 {[%clk 0:00:26]} 27. Qb5 {[%clk 0:01:04]}  Qd8 {[%clk 0:00:20]} 28. Qb7 {[%clk 0:01:03]}  Qa5 {[%clk 0:00:18]} 29. Qf7+ {[%clk 0:01:02]}  Kh7 {[%clk 0:00:19]} 30. Qxe6 {[%clk 0:00:54]}  Ng4 {[%clk 0:00:16]} 31. h3 {[%clk 0:00:42]}  Nh6 {[%clk 0:00:08]} 32. c6 {[%clk 0:00:30]}  h4 {[%clk 0:00:08]} 33. gxh4 {[%clk 0:00:22]}  Qd8 {[%clk 0:00:09]} 34. Qd7 {[%clk 0:00:14]}  Qxh4 {[%clk 0:00:08]} 35. c7 {[%clk 0:00:13]}  f4 {[%clk 0:00:08]} 36. c8=Q {[%clk 0:00:12]}  fxe3 {[%clk 0:00:08]} 37. fxe3 {[%clk 0:00:12]}  Qg5+ {[%clk 0:00:08]} 38. Kf2 {[%clk 0:00:09]}  Qh4+ {[%clk 0:00:09]} 39. Ke2 {[%clk 0:00:10]}  Qf6 {[%clk 0:00:07]} 40. Qcc7 {[%clk 0:00:10]}  Nf5 {[%clk 0:00:05]} 41. Ne4 {[%clk 0:00:08]}  Nxd4+ {[%clk 0:00:03]} 42. exd4 {[%clk 0:00:06]}  Qf8 {[%clk 0:00:02]} 43. Qxg7+ {[%clk 0:00:06]}  Qxg7 {[%clk 0:00:02]} 44. Qxg7+ {[%clk 0:00:07]}  Kxg7 {[%clk 0:00:03]} 45. d5 {[%clk 0:00:07]}  Kf8 {[%clk 0:00:03]} 46. Kd3 {[%clk 0:00:08]}  Ke7 {[%clk 0:00:04]} 47. Kd4 {[%clk 0:00:09]}  Kd7 {[%clk 0:00:04]} 48. Ke5 {[%clk 0:00:10]}  g5 {[%clk 0:00:05]} 49. Bg4+ {[%clk 0:00:10]}  Ke7 {[%clk 0:00:05]} 50. Nxg5 {[%clk 0:00:11]}  a5 {[%clk 0:00:06]} 51. d6+ {[%clk 0:00:11]}  Kd8 {[%clk 0:00:06]} 52. Nf7+ {[%clk 0:00:11]}  Ke8 {[%clk 0:00:06]} 53. Kf6 {[%clk 0:00:11]}  a4 {[%clk 0:00:06]} 54. d7+ {[%clk 0:00:12]}  Kf8 {[%clk 0:00:06]} 55. d8=Q# {[%clk 0:00:13]} 1-0


[Site "https://www.chess.com"]

[Event "Titled Tuesday Blitz October 31 Late 2023"]
[White "Osmonbekov, Talaibek"]
[Black "Ordekalog"]
[WhiteFideId "2017253"]
[WhiteElo "2291"]
[BlackElo "2570"]
[Result "0-1"]
[Round "11"]
[TimeControl "180+1"]
[Date "2023.10.31"]
[WhiteClock "0:00:00"]
[BlackClock "0:00:38"]
[Board "47"]

1. d4 {[%clk 0:03:00]}  d5 {[%clk 0:02:45]} 2. Nc3 {[%clk 0:03:00]}  Nf6 {[%clk 0:02:43]} 3. Bf4 {[%clk 0:03:00]}  c6 {[%clk 0:02:42]} 4. e3 {[%clk 0:02:59]}  Bf5 {[%clk 0:02:40]} 5. f3 {[%clk 0:02:59]}  e6 {[%clk 0:02:40]} 6. g4 {[%clk 0:02:59]}  Bg6 {[%clk 0:02:39]} 7. h4 {[%clk 0:03:00]}  h5 {[%clk 0:02:39]} 8. g5 {[%clk 0:03:00]}  Ng8 {[%clk 0:02:35]} 9. Bd3 {[%clk 0:03:01]}  Bxd3 {[%clk 0:02:32]} 10. Qxd3 {[%clk 0:03:02]}  Ne7 {[%clk 0:02:32]} 11. Nge2 {[%clk 0:03:00]}  Ng6 {[%clk 0:02:31]} 12. Bg3 {[%clk 0:02:59]}  Bd6 {[%clk 0:02:31]} 13. O-O-O {[%clk 0:02:49]}  Na6 {[%clk 0:02:30]} 14. a3 {[%clk 0:02:48]}  Qc7 {[%clk 0:02:25]} 15. Bxd6 {[%clk 0:02:38]}  Qxd6 {[%clk 0:02:26]} 16. e4 {[%clk 0:02:38]}  Nc7 {[%clk 0:02:14]} 17. e5 {[%clk 0:02:32]}  Qd7 {[%clk 0:02:06]} 18. f4 {[%clk 0:02:24]}  Ne7 {[%clk 0:02:06]} 19. Ng3 {[%clk 0:02:15]}  g6 {[%clk 0:02:06]} 20. Na4 {[%clk 0:02:14]}  b6 {[%clk 0:02:05]} 21. Qb3 {[%clk 0:02:09]}  O-O {[%clk 0:01:48]} 22. Rhg1 {[%clk 0:02:00]}  Nf5 {[%clk 0:01:47]} 23. Nxf5 {[%clk 0:01:59]}  exf5 {[%clk 0:01:48]} 24. Qb4 {[%clk 0:01:46]}  Ne6 {[%clk 0:01:46]} 25. Rgf1 {[%clk 0:01:30]}  Rfc8 {[%clk 0:01:46]} 26. Qb3 {[%clk 0:01:27]}  Rc7 {[%clk 0:01:38]} 27. Kb1 {[%clk 0:01:27]}  Rac8 {[%clk 0:01:37]} 28. c3 {[%clk 0:01:25]}  Rb7 {[%clk 0:01:22]} 29. Ka2 {[%clk 0:01:18]}  Qe7 {[%clk 0:01:21]} 30. Qc2 {[%clk 0:01:09]}  Rd8 {[%clk 0:01:12]} 31. b4 {[%clk 0:01:05]}  a5 {[%clk 0:01:10]} 32. bxa5 {[%clk 0:01:02]}  Ra8 {[%clk 0:01:04]} 33. axb6 {[%clk 0:00:52]}  Rxb6 {[%clk 0:01:04]} 34. Rb1 {[%clk 0:00:49]}  Rba6 {[%clk 0:01:04]} 35. Rb4 {[%clk 0:00:48]}  Qa7 {[%clk 0:01:03]} 36. Rfb1 {[%clk 0:00:18]}  Rxa4 {[%clk 0:01:02]} 37. Rxa4 {[%clk 0:00:18]}  Qxa4 {[%clk 0:01:03]} 38. Rb8+ {[%clk 0:00:18]}  Kg7 {[%clk 0:01:03]} 39. Qxa4 {[%clk 0:00:12]}  Rxa4 {[%clk 0:01:04]} 40. Rc8 {[%clk 0:00:11]}  Nxf4 {[%clk 0:01:03]} 41. Rxc6 {[%clk 0:00:11]}  Ne6 {[%clk 0:00:44]} 42. Kb3 {[%clk 0:00:00]}  Ra7 {[%clk 0:00:38]} 0-1


[Site "https://www.chess.com"]

[Event "Titled Tuesday Blitz October 31 Late 2023"]
[White "Shapiro, Viktor"]
[Black "UK_23"]
[WhiteFideId "4175700"]
[WhiteElo "2566"]
[BlackElo "2407"]
[Result "1-0"]
[Round "11"]
[TimeControl "180+1"]
[Date "2023.10.31"]
[WhiteClock "0:01:22"]
[BlackClock "0:01:50"]
[Board "48"]

1. c4 {[%clk 0:03:00]}  e6 {[%clk 0:03:00]} 2. Nc3 {[%clk 0:03:01]}  d5 {[%clk 0:03:00]} 3. d4 {[%clk 0:03:01]}  Nf6 {[%clk 0:03:01]} 4. Nf3 {[%clk 0:03:01]}  Be7 {[%clk 0:03:01]} 5. Bg5 {[%clk 0:03:02]}  O-O {[%clk 0:03:01]} 6. e3 {[%clk 0:03:02]}  b6 {[%clk 0:03:02]} 7. Qc2 {[%clk 0:02:57]}  Bb7 {[%clk 0:02:59]} 8. Bxf6 {[%clk 0:02:57]}  Bxf6 {[%clk 0:02:59]} 9. cxd5 {[%clk 0:02:57]}  exd5 {[%clk 0:02:58]} 10. Be2 {[%clk 0:02:56]}  c5 {[%clk 0:02:58]} 11. Rd1 {[%clk 0:02:50]}  c4 {[%clk 0:02:56]} 12. b3 {[%clk 0:02:46]}  cxb3 {[%clk 0:02:52]} 13. Qxb3 {[%clk 0:02:46]}  g6 {[%clk 0:02:42]} 14. Ne5 {[%clk 0:02:39]}  Re8 {[%clk 0:02:34]} 15. O-O {[%clk 0:02:23]}  Bg7 {[%clk 0:02:24]} 16. Bf3 {[%clk 0:02:21]}  Bxe5 {[%clk 0:02:18]} 17. dxe5 {[%clk 0:02:21]}  Rxe5 {[%clk 0:02:19]} 18. Rd2 {[%clk 0:02:10]}  Nc6 {[%clk 0:02:16]} 19. Bxd5 {[%clk 0:02:00]}  Qe7 {[%clk 0:02:10]} 20. Rfd1 {[%clk 0:01:51]}  Na5 {[%clk 0:02:06]} 21. Qa4 {[%clk 0:01:37]}  Bxd5 {[%clk 0:02:02]} 22. Nxd5 {[%clk 0:01:38]}  Qe6 {[%clk 0:02:02]} 23. Nc7 {[%clk 0:01:33]}  Re4 {[%clk 0:02:01]} 24. Rd8+ {[%clk 0:01:23]}  Rxd8 {[%clk 0:01:50]} 25. Rxd8+ {[%clk 0:01:22]} 1-0


[Site "https://www.chess.com"]